fUSD/lending_fUSD_20250219
["ID","MTS","AMOUNT","RATE_DAILY","PERIOD"]
[353579922,1739933458869,-500.0,0.00016317,2]
[353579923,1739933458878,-500.0,0.00016317,2]
[353579924,1739933458888,-500.0,0.00016317,2]
[353579925,1739933458897,-500.0,0.00016317,2]
[353579926,1739933458906,-500.0,0.00016317,2]
[353579927,1739933458915,-993.0,0.00016317,2]
[353579928,1739933458925,-500.0,0.00016317,2]
[353579929,1739933458935,-500.0,0.00016317,2]
[353579930,1739933458943,-500.0,0.00016317,2]
[353579931,1739933458953,-500.0,0.00016317,2]
[353579932,1739933458962,-500.0,0.00016317,2]
[353579933,1739933458971,-500.0,0.00016317,2]
[353579934,1739933458980,-500.0,0.00016317,2]
[353579935,1739933458989,-500.0,0.00016317,2]
[353579936,1739933458998,-500.0,0.00016317,2]
[353579937,1739933459008,-500.0,0.00016317,2]
[353579938,1739933459017,-500.0,0.00016317,2]
[353579939,1739933459026,-500.0,0.00016317,2]
[353579940,1739933459036,-500.0,0.00016317,2]
[353579941,1739933459045,-500.0,0.00016317,2]
[353579942,1739933459054,-500.0,0.00016317,2]
[353579943,1739933459064,-500.0,0.00016317,2]
[353579944,1739933459073,-500.0,0.00016317,2]
[353579945,1739933459082,-500.0,0.00016317,2]
[353579946,1739933459094,-500.0,0.00016317,2]
[353579947,1739933459103,-500.0,0.00016317,2]
[353579948,1739933459112,-500.0,0.00016317,2]
[353579949,1739933459121,-500.0,0.00016317,2]
[353579950,1739933459130,-500.0,0.00016317,2]
[353579951,1739933459139,-500.0,0.00016317,2]
[353579952,1739933459149,-500.0,0.00016317,2]
[353579953,1739933459158,-500.0,0.00016317,2]
[353579954,1739933459167,-500.0,0.00016317,2]
[353579955,1739933459176,-500.0,0.00016317,2]
[353579956,1739933459185,-500.0,0.00016317,2]
[353579957,1739933459195,-500.0,0.00016317,2]
[353579958,1739933459204,-500.0,0.00016317,2]
[353579959,1739933459213,-500.0,0.00016317,2]
[353579960,1739933459223,-500.0,0.00016317,2]
[353579961,1739933459232,-500.0,0.00016317,2]
[353579962,1739933459242,-500.0,0.00016317,2]
[353579963,1739933459251,-500.0,0.00016317,2]
[353579964,1739933459260,-500.0,0.00016317,2]
[353579965,1739933459269,-500.0,0.00016317,2]
[353579966,1739933459279,-500.0,0.00016317,2]
[353579967,1739933459288,-500.0,0.00016317,2]
[353579968,1739933459297,-678.0,0.00016317,2]
[353579969,1739933459306,-152.0,0.00016337,13]
[353579970,1739933459316,-150.0,0.0001634,2]
[353579971,1739933459325,-150.0,0.0001634,2]
[353579972,1739933459335,-150.0,0.00016343,2]
[353579973,1739933459345,-150.0,0.00016375,2]
[353579974,1739933459355,-150.0,0.00016377,2]
[353579975,1739933459365,-5133.74281057,0.0001638,2]
[353579976,1739933459375,-5552.0,0.000164,5]
[353579977,1739933459384,-34161.0,0.00016411,2]
[353579978,1739933459393,-158.12145596,0.00016411,2]
[353579979,1739933459403,-152.43636124,0.00016411,2]
[353579980,1739933459412,-154.55916198,0.00016411,2]
[353579981,1739933459421,-198.59923871,0.00016411,2]
[353579982,1739933459430,-949.5428975,0.00016427,2]
[353579983,1739933459440,-559.6036112,0.00016427,2]
[353579984,1739933459449,-1854.1469208,0.00016427,2]
[353579985,1739933459459,-1807.1883742,0.00016427,2]
[353579986,1739933459469,-333.3845112,0.00016427,2]
[353579987,1739933459478,-373.211836,0.00016427,2]
[353579988,1739933459487,-500.0,0.00016428,2]
[353579989,1739933459496,-859.27734285,0.00016428,2]
[353579990,1739933459506,-151.0,0.00016436,2]
[353579991,1739933459515,-158.374167,0.00016436,2]
[353579992,1739933459525,-182.71,0.00016437,2]
[353579993,1739933459535,-552104.61328821,0.00016437,2]
[353579994,1739933459544,-10417.51898916,0.00016437,2]
[353579995,1739933459554,-491.93304426,0.00016437,2]
[353579996,1739933459563,-151.578952,0.00016437,2]
[353579997,1739933459573,-151.0,0.00016437,2]
[353579998,1739933459582,-151.0,0.00016437,2]
[353579999,1739933459591,-156.45835,0.00016437,2]
[353580000,1739933459601,-203.739007,0.00016438,2]
[353580001,1739933459611,-151.0,0.00016438,2]
[353580002,1739933459621,-151.0,0.00016438,2]
[353580003,1739933459630,-151.0,0.00016438,2]
[353580004,1739933459639,-161.218666,0.00016438,2]
[353580005,1739933459649,-156.24193,0.00016438,2]
[353580006,1739933459658,-1521.670409,0.00016438,2]
[353580007,1739933459668,-158.347879,0.00016438,2]
[353580008,1739933459678,-2189.529755,0.00016438,2]
[353580009,1739933459687,-500.0,0.00016438,2]
[353580010,1739933459696,-216.910258,0.00016438,2]
[353580011,1739933459705,-177.80612,0.00016438,2]
[353580012,1739933459715,-531.38696482,0.00016438,2]
[353580013,1739933459725,-500.0,0.00016438,2]
[353580014,1739933459736,-500.0,0.00016438,2]
[353580015,1739933459747,-500.0,0.00016438,2]
[353580016,1739933459757,-500.0,0.00016438,2]
[353580017,1739933459767,-500.0,0.00016438,2]
[353580018,1739933459776,-500.0,0.00016438,2]
[353580019,1739933459785,-500.0,0.00016438,2]
[353580020,1739933459797,-502.41592943,0.00016438,2]
[353580021,1739933459808,-505.69361438,0.00016438,2]
[353580022,1739933459819,-500.0,0.00016438,2]
[353580023,1739933459830,-500.0,0.00016438,2]
[353580024,1739933459840,-500.0,0.00016438,2]
[353580025,1739933459849,-500.0,0.00016438,2]
[353580026,1739933459859,-500.0,0.00016438,2]
[353580027,1739933459868,-379.4524774,0.00016438,2]
[353580028,1739933459879,-500.0,0.00016438,2]
[353580029,1739933459889,-500.0,0.00016438,2]
[353580030,1739933459898,-500.0,0.00016438,2]
[353580031,1739933459907,-500.0,0.00016438,2]
[353580032,1739933459917,-500.0,0.00016438,2]
[353580033,1739933459926,-500.0,0.00016438,2]
[353580034,1739933459935,-587.83168524,0.00016438,2]
[353580035,1739933459944,-500.0,0.00016438,2]
[353580036,1739933459956,-500.0,0.00016438,2]
[353580037,1739933459965,-500.0,0.00016438,2]
[353580038,1739933459975,-216.910257,0.00016438,2]
[353580039,1739933459985,-500.0,0.00016438,2]
[353580040,1739933459994,-500.0,0.00016438,2]
[353580041,1739933460004,-177.806118,0.00016438,2]
[353580042,1739933460014,-627.81828004,0.00016438,2]
[353580043,1739933460023,-503.73295018,0.00016438,2]
[353580044,1739933460034,-519.05345631,0.00016438,2]
[353580045,1739933460044,-500.0,0.00016438,2]
[353580046,1739933460055,-282.1066962,0.00016438,2]
[353580047,1739933460066,-500.0,0.00016438,2]
[353580048,1739933460076,-500.0,0.00016438,2]
[353580049,1739933460088,-500.0,0.00016438,2]
[353580050,1739933460098,-501.64718261,0.00016438,2]
[353580051,1739933460108,-501.46829479,0.00016438,2]
[353580052,1739933460119,-500.0,0.00016438,2]
[353580053,1739933460128,-221.29501206,0.00016438,2]
[353580054,1739933460138,-500.0,0.00016438,2]
[353580055,1739933460147,-500.0,0.00016438,2]
[353580056,1739933460156,-500.0,0.00016438,2]
[353580057,1739933460168,-500.0,0.00016438,2]
[353580058,1739933460177,-251.92961761,0.00016438,2]
[353580059,1739933460187,-202.85484379,0.00016438,2]
[353580060,1739933460197,-500.0,0.00016438,2]
[353580061,1739933460208,-500.0,0.00016438,2]
[353580062,1739933460218,-500.0,0.00016438,2]
[353580063,1739933460228,-500.0,0.00016438,2]
[353580064,1739933460238,-502.75141607,0.00016438,2]
[353580065,1739933460248,-502.50415525,0.00016438,2]
[353580066,1739933460259,-500.0,0.00016438,2]
[353580067,1739933460269,-216.910256,0.00016438,2]
[353580068,1739933460279,-397.56893967,0.00016438,2]
[353580069,1739933460289,-257.17455232,0.00016438,2]
[353580070,1739933460299,-177.806117,0.00016438,2]
[353580071,1739933460308,-500.0,0.00016438,2]
[353580072,1739933460318,-500.0,0.00016438,2]
[353580073,1739933460329,-526.63599058,0.00016438,2]
[353580074,1739933460339,-304.66032795,0.00016438,2]
[353580075,1739933460350,-161.87110577,0.00016438,2]
[353580076,1739933460360,-500.0,0.00016438,2]
[353580077,1739933460370,-501.48177023,0.00016438,2]
[353580078,1739933460379,-500.0,0.00016438,2]
[353580079,1739933460389,-500.0,0.00016438,2]
[353580080,1739933460399,-500.0,0.00016438,2]
[353580081,1739933460408,-508.18044963,0.00016438,2]
[353580082,1739933460418,-503.2830391,0.00016438,2]
[353580083,1739933460427,-500.0,0.00016438,2]
[353580084,1739933460437,-500.0,0.00016438,2]
[353580085,1739933460447,-500.0,0.00016438,2]
[353580086,1739933460457,-500.0,0.00016438,2]
[353580087,1739933460467,-512.41347045,0.00016438,2]
[353580088,1739933460476,-500.0,0.00016438,2]
[353580089,1739933460485,-500.0,0.00016438,2]
[353580090,1739933460495,-500.0,0.00016438,2]
[353580091,1739933460505,-500.0,0.00016438,2]
[353580092,1739933460515,-177.806118,0.00016438,2]
[353580093,1739933460525,-500.0,0.00016438,2]
[353580094,1739933460535,-500.75536217,0.00016438,2]
[353580095,1739933460544,-527.83125863,0.00016438,2]
[353580096,1739933460554,-500.0,0.00016438,2]
[353580097,1739933460564,-554.26987096,0.00016438,2]
[353580098,1739933460574,-500.0,0.00016438,2]
[353580099,1739933460584,-500.55956459,0.00016438,2]
[353580100,1739933460594,-500.0,0.00016438,2]
[353580101,1739933460604,-500.0,0.00016438,2]
[353580102,1739933460614,-500.0,0.00016438,2]
[353580103,1739933460625,-500.0,0.00016438,2]
[353580104,1739933460635,-500.0,0.00016438,2]
[353580105,1739933460645,-500.0,0.00016438,2]
[353580106,1739933460656,-500.0,0.00016438,2]
[353580107,1739933460667,-500.0,0.00016438,2]
[353580108,1739933460677,-500.0,0.00016438,2]
[353580109,1739933460687,-502.32335952,0.00016438,2]
[353580110,1739933460696,-709.03,0.00016438,2]
[353580111,1739933460707,-500.0,0.00016438,2]
[353580112,1739933460717,-500.0,0.00016438,2]
[353580113,1739933460727,-500.0,0.00016438,2]
[353580114,1739933460736,-500.0,0.00016438,2]
[353580115,1739933460746,-503.65260118,0.00016438,2]
[353580116,1739933460756,-216.910257,0.00016438,2]
[353580117,1739933460766,-500.0,0.00016438,2]
[353580118,1739933460775,-500.0,0.00016438,2]
[353580119,1739933460785,-500.0,0.00016438,2]
[353580120,1739933460795,-500.0,0.00016438,2]
[353580121,1739933460804,-500.0,0.00016438,2]
[353580122,1739933460814,-500.0,0.00016438,2]
[353580123,1739933460824,-500.0,0.00016438,2]
[353580124,1739933460833,-500.0,0.00016438,2]
[353580125,1739933460843,-506.90753115,0.00016438,2]
[353580126,1739933460853,-872.23,0.00016438,2]
[353580127,1739933460863,-502.39509691,0.00016438,2]
[353580128,1739933460873,-500.0,0.00016438,2]
[353580129,1739933460883,-501.51404113,0.00016438,2]
[353580130,1739933460892,-500.85711606,0.00016438,2]
[353580131,1739933460902,-500.0,0.00016438,2]
[353580132,1739933460913,-500.0,0.00016438,2]
[353580133,1739933460923,-500.0,0.00016438,2]
[353580134,1739933460933,-500.0,0.00016438,2]
[353580135,1739933460943,-500.0,0.00016438,2]
[353580136,1739933460953,-500.0,0.00016438,2]
[353580137,1739933460965,-372.67643125,0.00016438,2]
[353580138,1739933460975,-500.0,0.00016438,2]
[353580139,1739933460984,-500.0,0.00016438,2]
[353580140,1739933460994,-500.0,0.00016438,2]
[353580141,1739933461004,-500.0,0.00016438,2]
[353580142,1739933461024,-500.0,0.00016438,2]
[353580143,1739933461034,-569.48,0.00016438,2]
[353580144,1739933461044,-500.26,0.00016438,2]
[353580145,1739933461054,-500.0,0.00016438,2]
[353580146,1739933461064,-503.19570821,0.00016438,2]
[353580147,1739933461073,-500.74636688,0.00016438,2]
[353580148,1739933461083,-500.0,0.00016438,2]
[353580149,1739933461095,-500.0,0.00016438,2]
[353580150,1739933461106,-500.0,0.00016438,2]
[353580151,1739933461115,-500.0,0.00016438,2]
[353580152,1739933461125,-501.76975763,0.00016438,2]
[353580153,1739933461135,-502.76178169,0.00016438,2]
[353580154,1739933461145,-500.0,0.00016438,2]
[353580155,1739933461155,-500.0,0.00016438,2]
[353580156,1739933461164,-500.0,0.00016438,2]
[353580157,1739933461173,-500.0,0.00016438,2]
[353580158,1739933461183,-500.0,0.00016438,2]
[353580159,1739933461192,-500.0,0.00016438,2]
[353580160,1739933461201,-500.0,0.00016438,2]
[353580161,1739933461213,-510.44543873,0.00016438,2]
[353580162,1739933461222,-500.0,0.00016438,2]
[353580163,1739933461237,-500.0,0.00016438,2]
[353580164,1739933461247,-500.0,0.00016438,2]
[353580165,1739933461256,-500.0,0.00016438,2]
[353580166,1739933461266,-521.28261964,0.00016438,2]
[353580167,1739933461275,-500.0,0.00016438,2]
[353580168,1739933461285,-269.5897796,0.00016438,2]
[353580169,1739933461295,-500.0,0.00016438,2]
[353580170,1739933461304,-500.0,0.00016438,2]
[353580171,1739933461314,-500.0,0.00016438,2]
[353580172,1739933461323,-500.0,0.00016438,2]
[353580173,1739933461333,-500.0,0.00016438,2]
[353580174,1739933461343,-500.0,0.00016438,2]
[353580175,1739933461352,-500.0,0.00016438,2]
[353580176,1739933461362,-500.0,0.00016438,2]
[353580177,1739933461372,-500.0,0.00016438,2]
[353580178,1739933461382,-502.03935319,0.00016438,2]
[353580179,1739933461392,-500.0,0.00016438,2]
[353580180,1739933461402,-500.0,0.00016438,2]
[353580181,1739933461412,-500.0,0.00016438,2]
[353580182,1739933461421,-500.0,0.00016438,2]
[353580183,1739933461431,-500.0,0.00016438,2]
[353580184,1739933461442,-512.21,0.00016438,2]
[353580185,1739933461451,-500.0,0.00016438,2]
[353580186,1739933461464,-500.0,0.00016438,2]
[353580187,1739933461473,-709.78,0.00016438,2]
[353580188,1739933461483,-500.0,0.00016438,2]
[353580189,1739933461494,-500.0,0.00016438,2]
[353580190,1739933461504,-177.806118,0.00016438,2]
[353580191,1739933461514,-500.0,0.00016438,2]
[353580192,1739933461524,-507.0525483,0.00016438,2]
[353580193,1739933461534,-608.39,0.00016438,2]
[353580194,1739933461545,-500.0,0.00016438,2]
[353580195,1739933461555,-504.34045373,0.00016438,2]
[353580196,1739933461565,-500.0,0.00016438,2]
[353580197,1739933461574,-500.0,0.00016438,2]
[353580198,1739933461584,-500.0,0.00016438,2]
[353580199,1739933461595,-500.0,0.00016438,2]
[353580200,1739933461605,-500.0,0.00016438,2]
[353580201,1739933461615,-500.0,0.00016438,2]
[353580202,1739933461626,-667.11,0.00016438,2]
[353580203,1739933461637,-500.0,0.00016438,2]
[353580204,1739933461646,-521.12,0.00016438,2]
[353580205,1739933461656,-500.0,0.00016438,2]
[353580206,1739933461665,-515.61,0.00016438,2]
[353580207,1739933461675,-503.33681167,0.00016438,2]
[353580208,1739933461685,-526.89,0.00016438,2]
[353580209,1739933461695,-500.0,0.00016438,2]
[353580210,1739933461705,-500.0,0.00016438,2]
[353580211,1739933461716,-500.0,0.00016438,2]
[353580212,1739933461726,-500.0,0.00016438,2]
[353580213,1739933461736,-533.54,0.00016438,2]
[353580214,1739933461746,-606.82,0.00016438,2]
[353580215,1739933461755,-500.0,0.00016438,2]
[353580216,1739933461765,-238.62528036,0.00016438,2]
[353580217,1739933461775,-501.41101282,0.00016438,2]
[353580218,1739933461978,-500.0,0.00016438,2]
[353580219,1739933461989,-572.89,0.00016438,2]
[353580220,1739933461999,-500.0,0.00016438,2]
[353580221,1739933462009,-500.0,0.00016438,2]
[353580222,1739933462019,-500.0,0.00016438,2]
[353580223,1739933462028,-531.87877705,0.00016438,2]
[353580224,1739933462038,-500.0,0.00016438,2]
[353580225,1739933462047,-500.0,0.00016438,2]
[353580226,1739933462056,-500.0,0.00016438,2]
[353580227,1739933462066,-500.0,0.00016438,2]
[353580228,1739933462075,-500.0,0.00016438,2]
[353580229,1739933462087,-216.910256,0.00016438,2]
[353580230,1739933462097,-500.0,0.00016438,2]
[353580231,1739933462107,-500.0,0.00016438,2]
[353580232,1739933462117,-500.0,0.00016438,2]
[353580233,1739933462126,-500.0,0.00016438,2]
[353580234,1739933462134,-521.09,0.00016438,2]
[353580235,1739933462144,-500.0,0.00016438,2]
[353580236,1739933462153,-598.14,0.00016438,2]
[353580237,1739933462162,-508.67387138,0.00016438,2]
[353580238,1739933462172,-665.85,0.00016438,2]
[353580239,1739933462182,-509.18818916,0.00016438,2]
[353580240,1739933462191,-500.0,0.00016438,2]
[353580241,1739933462201,-500.0,0.00016438,2]
[353580242,1739933462211,-500.0,0.00016438,2]
[353580243,1739933462220,-500.0,0.00016438,2]
[353580244,1739933462230,-404.05500835,0.00016438,2]
[353580245,1739933462239,-500.0,0.00016438,2]
[353580246,1739933462249,-500.0,0.00016438,2]
[353580247,1739933462258,-500.0,0.00016438,2]
[353580248,1739933462267,-838.98,0.00016438,2]
[353580249,1739933462276,-522.03671815,0.00016438,2]
[353580250,1739933462285,-500.0,0.00016438,2]
[353580251,1739933462294,-500.0,0.00016438,2]
[353580252,1739933462304,-500.0,0.00016438,2]
[353580253,1739933462312,-500.0,0.00016438,2]
[353580254,1739933462320,-500.0,0.00016438,2]
[353580255,1739933462329,-500.0,0.00016438,2]
[353580256,1739933462338,-500.0,0.00016438,2]
[353580257,1739933462347,-500.0,0.00016438,2]
[353580258,1739933462356,-500.0,0.00016438,2]
[353580259,1739933462365,-500.0,0.00016438,2]
[353580260,1739933462374,-500.0,0.00016438,2]
[353580261,1739933462383,-500.0,0.00016438,2]
[353580262,1739933462393,-636.59522959,0.00016438,2]
[353580263,1739933462402,-502.54516044,0.00016438,2]
[353580264,1739933462412,-500.0,0.00016438,2]
[353580265,1739933462426,-500.0,0.00016438,2]
[353580266,1739933462436,-500.0,0.00016438,2]
[353580267,1739933462446,-500.0,0.00016438,2]
[353580268,1739933462457,-500.0,0.00016438,2]
[353580269,1739933462466,-500.0,0.00016438,2]
[353580270,1739933462476,-500.0,0.00016438,2]
[353580271,1739933462486,-500.0,0.00016438,2]
[353580272,1739933462497,-675.14,0.00016438,2]
[353580273,1739933462507,-773.31,0.00016438,2]
[353580274,1739933462516,-500.0,0.00016438,2]
[353580275,1739933462526,-500.0,0.00016438,2]
[353580276,1739933462536,-765.53,0.00016438,2]
[353580277,1739933462546,-216.910257,0.00016438,2]
[353580278,1739933462556,-500.0,0.00016438,2]
[353580279,1739933462565,-500.0,0.00016438,2]
[353580280,1739933462575,-625.79,0.00016438,2]
[353580281,1739933462585,-500.0,0.00016438,2]
[353580282,1739933462594,-500.0,0.00016438,2]
[353580283,1739933462603,-500.0,0.00016438,2]
[353580284,1739933462613,-500.0,0.00016438,2]
[353580285,1739933462622,-500.0,0.00016438,2]
[353580286,1739933462632,-500.0,0.00016438,2]
[353580287,1739933462643,-500.0,0.00016438,2]
[353580288,1739933462662,-731.16,0.00016438,2]
[353580289,1739933462671,-501.73751612,0.00016438,2]
[353580290,1739933462681,-500.0,0.00016438,2]
[353580291,1739933462691,-500.0,0.00016438,2]
[353580292,1739933462700,-177.806117,0.00016438,2]
[353580293,1739933462711,-500.0,0.00016438,2]
[353580294,1739933462721,-500.0,0.00016438,2]
[353580295,1739933462730,-500.0,0.00016438,2]
[353580296,1739933462740,-503.9279249,0.00016438,2]
[353580297,1739933462754,-500.0,0.00016438,2]
[353580298,1739933462764,-500.0,0.00016438,2]
[353580299,1739933462774,-500.0,0.00016438,2]
[353580300,1739933462784,-500.0,0.00016438,2]
[353580301,1739933462795,-500.0,0.00016438,2]
[353580302,1739933462804,-500.0,0.00016438,2]
[353580303,1739933462816,-400.4732691,0.00016438,2]
[353580304,1739933462827,-500.0,0.00016438,2]
[353580305,1739933462838,-500.0,0.00016438,2]
[353580306,1739933462848,-500.0,0.00016438,2]
[353580307,1739933462858,-500.0,0.00016438,2]
[353580308,1739933462867,-500.0,0.00016438,2]
[353580309,1739933462877,-559.94,0.00016438,2]
[353580310,1739933462886,-500.0,0.00016438,2]
[353580311,1739933462895,-500.0,0.00016438,2]
[353580312,1739933462905,-500.0,0.00016438,2]
[353580313,1739933462914,-504.44,0.00016438,2]
[353580314,1739933462923,-500.0,0.00016438,2]
[353580315,1739933462933,-500.0,0.00016438,2]
[353580316,1739933462942,-500.0,0.00016438,2]
[353580317,1739933462951,-500.0,0.00016438,2]
[353580318,1739933462961,-500.0,0.00016438,2]
[353580319,1739933462971,-502.12,0.00016438,2]
[353580320,1739933462980,-500.0,0.00016438,2]
[353580321,1739933462990,-500.0,0.00016438,2]
[353580322,1739933463000,-500.0,0.00016438,2]
[353580323,1739933463010,-500.0,0.00016438,2]
[353580324,1739933463020,-500.0,0.00016438,2]
[353580325,1739933463030,-479.1352991,0.00016438,2]
[353580326,1739933463040,-500.0,0.00016438,2]
[353580327,1739933463051,-500.0,0.00016438,2]
[353580328,1739933463062,-1181.32,0.00016438,2]
[353580329,1739933463072,-500.0,0.00016438,2]
[353580330,1739933463084,-729.68,0.00016438,2]
[353580331,1739933463097,-500.0,0.00016438,2]
[353580332,1739933463108,-502.2,0.00016438,2]
[353580333,1739933463118,-500.0,0.00016438,2]
[353580334,1739933463129,-699.19,0.00016438,2]
[353580335,1739933463139,-500.0,0.00016438,2]
[353580336,1739933463149,-1314.56,0.00016438,2]
[353580337,1739933463160,-500.0,0.00016438,2]
[353580338,1739933463170,-500.0,0.00016438,2]
[353580339,1739933463180,-687.93,0.00016438,2]
[353580340,1739933463190,-500.0,0.00016438,2]
[353580341,1739933463202,-500.0,0.00016438,2]
[353580342,1739933463212,-528.00970866,0.00016438,2]
[353580343,1739933463222,-500.0,0.00016438,2]
[353580344,1739933463233,-521.57,0.00016438,2]
[353580345,1739933463243,-500.0,0.00016438,2]
[353580346,1739933463254,-500.0,0.00016438,2]
[353580347,1739933463265,-500.0,0.00016438,2]
[353580348,1739933463276,-522.52912727,0.00016438,2]
[353580349,1739933463287,-500.0,0.00016438,2]
[353580350,1739933463298,-500.0,0.00016438,2]
[353580351,1739933463310,-500.0,0.00016438,2]
[353580352,1739933463320,-500.0,0.00016438,2]
[353580353,1739933463331,-500.0,0.00016438,2]
[353580354,1739933463342,-500.0,0.00016438,2]
[353580355,1739933463353,-502.53036178,0.00016438,2]
[353580356,1739933463363,-500.0,0.00016438,2]
[353580357,1739933463374,-500.0,0.00016438,2]
[353580358,1739933463384,-500.0,0.00016438,2]
[353580359,1739933463394,-500.0,0.00016438,2]
[353580360,1739933463404,-500.0,0.00016438,2]
[353580361,1739933463414,-500.0,0.00016438,2]
[353580362,1739933463424,-1807.58,0.00016438,2]
[353580363,1739933463435,-500.0,0.00016438,2]
[353580364,1739933463445,-500.0,0.00016438,2]
[353580365,1739933463455,-500.0,0.00016438,2]
[353580366,1739933463467,-500.0,0.00016438,2]
[353580367,1739933463477,-500.0,0.00016438,2]
[353580368,1739933463487,-500.0,0.00016438,2]
[353580369,1739933463497,-500.0,0.00016438,2]
[353580370,1739933463507,-500.0,0.00016438,2]
[353580371,1739933463519,-1293.22,0.00016438,2]
[353580372,1739933463529,-938.91,0.00016438,2]
[353580373,1739933463540,-296.69802289,0.00016438,2]
[353580374,1739933463551,-500.0,0.00016438,2]
[353580375,1739933463560,-521.19,0.00016438,2]
[353580376,1739933463570,-583.94,0.00016438,2]
[353580377,1739933463580,-500.0,0.00016438,2]
[353580378,1739933463591,-500.0,0.00016438,2]
[353580379,1739933463600,-501.69232715,0.00016438,2]
[353580380,1739933463610,-500.0,0.00016438,2]
[353580381,1739933463620,-750.25,0.00016438,2]
[353580382,1739933463629,-541.70607241,0.00016438,2]
[353580383,1739933463639,-500.0,0.00016438,2]
[353580384,1739933463649,-856.23,0.00016438,2]
[353580385,1739933463658,-501.44800111,0.00016438,2]
[353580386,1739933463668,-500.0,0.00016438,2]
[353580387,1739933463679,-500.0,0.00016438,2]
[353580388,1739933463688,-500.5038507,0.00016438,2]
[353580389,1739933463698,-500.0,0.00016438,2]
[353580390,1739933463709,-500.0,0.00016438,2]
[353580391,1739933463719,-500.0,0.00016438,2]
[353580392,1739933463730,-500.0,0.00016438,2]
[353580393,1739933463741,-500.0,0.00016438,2]
[353580394,1739933463751,-836.36,0.00016438,2]
[353580395,1739933463762,-500.0,0.00016438,2]
[353580396,1739933463772,-521.24091727,0.00016438,2]
[353580397,1739933463783,-500.0,0.00016438,2]
[353580398,1739933463793,-502.96160617,0.00016438,2]
[353580399,1739933463806,-222.31604741,0.00016438,2]
[353580400,1739933463815,-500.0,0.00016438,2]
[353580401,1739933463826,-500.0,0.00016438,2]
[353580402,1739933463836,-500.0,0.00016438,2]
[353580403,1739933463846,-500.0,0.00016438,2]
[353580404,1739933463856,-500.8233625,0.00016438,2]
[353580405,1739933463866,-500.0,0.00016438,2]
[353580406,1739933463876,-500.0,0.00016438,2]
[353580407,1739933463886,-977.26,0.00016438,2]
[353580408,1739933463897,-500.0,0.00016438,2]
[353580409,1739933463907,-500.0,0.00016438,2]
[353580410,1739933463917,-500.57675645,0.00016438,2]
[353580411,1739933463927,-1011.2,0.00016438,2]
[353580412,1739933463938,-500.0,0.00016438,2]
[353580413,1739933463948,-500.0,0.00016438,2]
[353580414,1739933463960,-500.0,0.00016438,2]
[353580415,1739933463971,-500.0,0.00016438,2]
[353580416,1739933463981,-599.37,0.00016438,2]
[353580417,1739933463991,-500.0,0.00016438,2]
[353580418,1739933464002,-500.0,0.00016438,2]
[353580419,1739933464013,-500.0,0.00016438,2]
[353580420,1739933464023,-500.0,0.00016438,2]
[353580421,1739933464033,-500.0,0.00016438,2]